{"text_format":"1","workbook":"xlsx","n_sheets":4,"sheets":["Grundlagen","Kontenarten","Grundsätze","Buchungen"],"not_rendered":{"charts":0,"images":0,"macros":1,"external_links":0,"defined_names":0,"comments":0,"pivot_tables":0},"unopened":[],"bounds":{"document_bytes":16777216,"sheet_cells":100000,"rows_first":2000,"rows_last":500,"rows_between":2000,"halvings":0,"cell_chars":16384,"cell_head_chars":4096},"cells_cut":0,"cells_raw":0,"read":"whole","date_system":"1900"}

{"sheet":"Grundlagen","index":0,"n_rows":11,"n_cols":6,"rows_kept":11,"cut":false,"hidden":false,"merged":[[2,1,2,6],[4,1,4,6],[10,1,13,2],[10,3,13,4],[10,5,13,6],[6,1,9,2]]}
[]
[]
[null,"Grundlagen der Finanzbuchhaltung"]
[]
[null,"Klicken Sie auf die Buttons, und beantworten Sie die Fragen."]
[]
[]
[]
[]
[]
[null,"Welche Kontenart liegt bei den angegebenen Konten vor?",null,"Bestimmen Sie Grundsätze       der Buchführung.",null,"Stellen Sie einfache Buchungssätze auf."]

{"sheet":"Kontenarten","index":1,"n_rows":31,"n_cols":4,"rows_kept":31,"cut":false,"hidden":false,"merged":[[0,0,0,2]]}
["Um welche Kontenart handelt es sich?"]
[]
[]
[]
["Tragen Sie eine der folgenden Kontenarten ein: Aktiv, Passiv, Aufwand, Ertrag."]
["Konto","Kontenart","Wertung","Lösung"]
["Kasse",null,{"$f":"IF(ISBLANK(B7),\"\",IF(ISNA(MATCH(B7,D7,0)), \"leider falsch\",\"richtig\"))","v":""},"Aktiv"]
["Büromaterial",null,"","Aufwand"]
["Verbindlichkeiten g. Kreditinstitute (Darlehen)",null,"","Passiv"]
["Verbindlichkeiten a.L.u.:",null,"","Passiv"]
["Forderungen a.L.u.L.",null,"","Aktiv"]
["Rohstoffe",null,"","Aktiv"]
["Eigenkapital",null,"","Passiv"]
["Betriebs- und Geschäftsausstattung",null,"","Aktiv"]
["Miete",null,"","Aufwand"]
["Postgebühren",null,"","Aufwand"]
["Fuhrpark",null,"","Aktiv"]
["Hypotheken",null,"","Passiv"]
["Werbung",null,"","Aufwand"]
["Löhne",null,"","Aufwand"]
["Technische Anlagen und Maschinen",null,"","Aktiv"]
["Gebäude",null,"","Aktiv"]
["Umsatzerlöse",null,"","Ertrag"]
["Gehälter",null,"","Aufwand"]
["Bank",null,"","Aktiv"]
["Fremdinstandhaltung",null,"","Aufwand"]
["Versicherungsbeiträge",null,"","Aufwand"]
["Kraftfahrzeugsteuer",null,"","Aufwand"]
["Bebaute Grundstücke",null,"","Aktiv"]
["Fertige Erzeugnisse",null,"","Aktiv"]
["Mieterträge",null,"","Ertrag"]

{"sheet":"Grundsätze","index":2,"n_rows":30,"n_cols":5,"rows_kept":30,"cut":false,"hidden":false,"merged":[[0,0,0,3],[4,0,4,1]]}
["Bestimmen Sie Grundsätze der Buchführung"]
[]
[]
[]
["Setzen Sie das richtige Wort in der Spalte Lösung ein:",null,"Lösung","Wertung","Lösung"]
["1.","Aufwendungen stehen immer im ………….",null,{"$f":"IF(ISBLANK(C6),\"\",IF(ISNA(MATCH(C6,E6,0)), \"leider falsch\",\"richtig\"))","v":""},"Soll"]
["2.","Der AB aller …………… Bestandskonten steht im Soll.",null,{"$f":"IF(ISBLANK(C7),\"\",IF(ISNA(MATCH(C7,E7,0)), \"leider falsch\",\"richtig\"))","v":""},"aktiven"]
["3.","Der SB aller passiven Bestandskonten steht immer im ……….",null,"","Soll"]
["4.","Erträge stehen immer im ………",null,"","Haben"]
["5.","Erträge …………… das Eigenkapital.",null,"","erhöhen"]
["6.","Kasse ist ein …………… Bestandskonto.",null,"","aktives"]
["7.","Aufwendungen > Erträge =",null,"","Verlust"]
["8.","……………….. Bestandskonten nehmen im Haben zu.",null,"","Passive"]
["9.","Aktive Bestandskonten nehmen im ………… zu.",null,"","Soll"]
["10.","Eigenkapital ist ein ……………. Bestandskonto.",null,"","Passives"]
["11.","Erträge ….. Aufwendungen = Verlust.",null,"","<"]
["12.","Das GuV-Konto wird über ………… abgeschlossen.",null,"","Eigenkapital"]
["13.","Eigenkapital wird über das ………………… abgeschlossen.",null,"","Schlussbilanzkonto"]
["14.","Forderungen a.L.u.L. ist ein ………….. Bestandskonto.",null,"","aktives"]
["15.","Verbindlichkeiten sind ……………..gegenüber Lieferern.",null,"","Schulden"]
["16.","Bei der Lieferung von Rohstoffen erhalten wir eine .....................",null,"","Eingangsrechnung"]
["17.","Absender einer Eingangsrechnung ist der …………….",null,"","Lieferer"]
["18.","Verbindlichkeiten a.L.u.L. ist ein passives …………………….",null,"","Bestandskonto"]
["19.","Vermögen - Schulden = ..........................",null,"","Eigenkapital"]
["20.","Keine Buchung ohne ………………..",null,"","Beleg"]
["21.","Aufwendungen < Erträge = .................",null,"","Gewinn"]
["22.","Beim Verkauf erstellen wir eine ………………………..",null,"","Ausgangsrechnung"]
["23.","Eigenkapital + Schulden = ...................",null,"","Vermögen"]
["24.","Bestände werden durch ……………erfasst.",null,"","Inventur"]
["25.","Aufwendungen ....... Erträge = Verlust",null,"",">"]

{"sheet":"Buchungen","index":3,"n_rows":29,"n_cols":5,"rows_kept":29,"cut":false,"hidden":false,"merged":[[0,0,0,3],[28,0,29,3],[27,0,27,1],[4,0,5,3]]}
["Bilden Sie die Buchungssätze für einfache Geschäftsvorfälle"]
[]
[]
[]
["Bilden Sie die Buchunssätze und verwenden Sie die korrekten Kontenbezeichnungen lt. Kontenplan. Der Kontenanruf lautet \"an\". Konten, die beide auf einer Kontenseite stehen werden mit \"und\" verbunden. Wörter werden durch Leerzeichen getrennt."]
[]
["Nr.","Geschäftsvorfälle","Buchungssatz: Soll an Haben","Wertung"]
["1.","Wir heben Geld bar von unserem Bankkonto ab.",null,{"$f":"IF(ISBLANK(C8),\"\",IF(ISNA(MATCH(C8,E8,0)), \"leider falsch\", \"richtig\"))","v":""},"Kasse an Bank"]
["2.","Wir kaufen einen Pkw auf Ziel.",null,{"$f":"IF(ISBLANK(C9),\"\",IF(ISNA(MATCH(C9,E9,0)), \"leider falsch\", \"richtig\"))","v":""},"Fuhrpark an Verbindlichkeiten"]
["3.","Wir kaufen Rohstoffe auf Ziel.",null,"","Rohstoffe an Verbindlichkeiten"]
["4.","Verkauf von fertigen Erzeugnissen gegen Barzahlung.",null,"","Kasse an Umsatzerlöse"]
["5.","Wir zahlen bar auf unser Bankkonto ein.",null,"","Bank an Kasse"]
["6.","Bankgutschrift für Ausgangsrechnung.",null,"","Bank an Forderungen"]
["7.","Verkauf von fertigen Erzeugnissen gegen Banküberweisung.",null,"","Bank an Umsatzerlöse"]
["8.","Wir kaufen Hilfsstoffe ein und zahlen einen Teil bar, den Rest später.",null,"","Hilfsstoffe an Kasse und Verbindlichkeiten"]
["9.","Wir tilgen ein Darlehen durch Postbank und Banküberweisung.",null,"","Darlehen an Postbank und Bank"]
["10.","Banklastschrift für Eingangsrechnung.",null,"","Verbindlichkeiten an Bank"]
["11.","Wir kaufen eine Produktionsmaschine bar.",null,"","Maschinen an Kasse"]
["12.","Umwandlung einer Verbindlichkeit in ein Darlehen.",null,"","Verbindlichkeiten an Darlehen"]
["13.","Verkauf von fertigen Erzeugnissen auf Ziel.",null,"","Forderungen an Umsatzerlöse"]
["14.","Wir überweisen an den Lieferer.",null,"","Verbindlichkeiten an Bank"]
["15.","Wir verkaufen einen gebrauchten PC bar.",null,"","Kasse an BGA"]
["16.","Ein Kunde begleicht eine Forderung durch Barzahlung.",null,"","Kasse an Forderungen"]
["17.","Banküberweisung von Kunden.",null,"","Bank an Forderungen"]
["18.","Wir kaufen Schreibtische auf Ziel.",null,"","BGA an Verbindlichkeiten"]
["19.","Verkauf eines Pkw gegen Barzahlung und Bankscheck.",null,"","Kasse und Bank an Fuhrpark"]
["20.","Wir nehmen ein Darlehen auf.",null,"","Bank an Darlehen"]
["Kontenplan:"]
["Maschinen, BGA, Fuhrpark, Rohstoffe, Hilfsstoffe, Forderungen, Bank, Postbank, Kasse, Darlehen, Verbindlichkeiten, Umsatzerlöse, "]